[Event "Late-Titled-Tuesday-Blitz-February-13-2024"]
[Site "Chess.com"]
[Date "2024.02.13"]
[Round "7"]
[White "Quattroporte300"]
[Black "Payyappat"]
[Result "0-1"]
[WhiteElo "2420"]
[BlackElo "2570"]
[TimeControl "180+1"]
[EndTime "15:17:55 PST"]
[Termination "Payyappat won by resignation"]

1. e4 {[%clk 0:03:00.9]} 1... c6 {[%clk 0:02:59.5]} 2. d4 {[%clk 0:03:00.1]}
2... d5 {[%clk 0:03:00.4]} 3. Nc3 {[%clk 0:02:59.7]} 3... dxe4 {[%clk 0:03:00]}
4. Nxe4 {[%clk 0:03:00.6]} 4... Nf6 {[%clk 0:03:00.4]} 5. Nxf6+ {[%clk
0:03:00.7]} 5... exf6 {[%clk 0:03:01.3]} 6. c3 {[%clk 0:03:01.3]} 6... Bd6
{[%clk 0:03:01.9]} 7. Bd3 {[%clk 0:03:01.8]} 7... O-O {[%clk 0:03:02.6]} 8. Qc2
{[%clk 0:03:02.6]} 8... Re8+ {[%clk 0:03:03.5]} 9. Ne2 {[%clk 0:03:03.1]} 9...
h5 {[%clk 0:03:04]} 10. Be3 {[%clk 0:03:03.8]} 10... Nd7 {[%clk 0:03:04.3]} 11.
O-O-O {[%clk 0:03:04.3]} 11... Nf8 {[%clk 0:03:05]} 12. c4 {[%clk 0:03:04.4]}
12... Be6 {[%clk 0:03:05.6]} 13. Kb1 {[%clk 0:03:04.6]} 13... Rc8 {[%clk
0:03:05.5]} 14. Nc3 {[%clk 0:03:04.3]} 14... Bb4 {[%clk 0:03:05.1]} 15. Ne4
{[%clk 0:03:02.2]} 15... Be7 {[%clk 0:02:57.9]} 16. Nc3 {[%clk 0:02:55]} 16...
Bb4 {[%clk 0:02:54.5]} 17. Ne4 {[%clk 0:02:54.7]} 17... b5 {[%clk 0:02:55]} 18.
Nc5 {[%clk 0:02:45.8]} 18... Bxc5 {[%clk 0:02:48.5]} 19. dxc5 {[%clk 0:02:45.2]}
19... Qa5 {[%clk 0:02:47.6]} 20. Bd2 {[%clk 0:02:23.8]} 20... b4 {[%clk
0:02:46.4]} 21. a3 {[%clk 0:02:19.6]} 21... Qxc5 {[%clk 0:02:40.3]} 22. Bxb4
{[%clk 0:02:19.1]} 22... Qg5 {[%clk 0:02:38.6]} 23. g3 {[%clk 0:01:58.4]} 23...
Bg4 {[%clk 0:02:27.6]} 24. Rde1 {[%clk 0:01:36.8]} 24... Bf3 {[%clk 0:02:15.1]}
25. h4 {[%clk 0:01:32]} 25... Qg4 {[%clk 0:01:52.5]} 26. Bf5 {[%clk 0:01:22.3]}
26... Qd4 {[%clk 0:01:50.3]} 27. Bxc8 {[%clk 0:01:19.5]} 27... Rxc8 {[%clk
0:01:46.4]} 28. Rhg1 {[%clk 0:01:12.6]} 28... c5 {[%clk 0:01:42.5]} 29. Bc3
{[%clk 0:01:08.7]} 29... Qxc4 {[%clk 0:01:39.6]} 30. Re3 {[%clk 0:01:09.1]}
30... Bd5 {[%clk 0:01:37]} 31. b3 {[%clk 0:01:07.7]} 31... Rb8 {[%clk 0:01:32]}
32. Bb2 {[%clk 0:01:01.8]} 32... Qb5 {[%clk 0:01:13.4]} 33. Rc1 {[%clk
0:00:51.7]} 33... Bxb3 {[%clk 0:01:10.5]} 34. Qxc5 {[%clk 0:00:45.3]} 34... Ba2+
{[%clk 0:01:09.8]} 35. Kc2 {[%clk 0:00:43.1]} 35... Qxb2+ {[%clk 0:01:10.7]} 36.
Kd1 {[%clk 0:00:43.2]} 36... Be6 {[%clk 0:00:59.7]} 37. Qc3 {[%clk 0:00:40.1]}
37... Qxc3 {[%clk 0:00:47.5]} 38. Rexc3 {[%clk 0:00:30.7]} 38... Ng6 {[%clk
0:00:42.8]} 39. f4 {[%clk 0:00:25.1]} 39... Rb2 {[%clk 0:00:37.3]} 40. R1c2
{[%clk 0:00:21.6]} 40... Bb3 {[%clk 0:00:34.6]} 41. Rxb3 {[%clk 0:00:19.9]}
41... Rxb3 {[%clk 0:00:35.5]} 42. Rc8+ {[%clk 0:00:15.8]} 42... Kh7 {[%clk
0:00:35.1]} 43. a4 {[%clk 0:00:14.6]} 43... Rxg3 {[%clk 0:00:34.9]} 44. Rc7
{[%clk 0:00:14.8]} 44... Nxh4 {[%clk 0:00:34.4]} 45. Rxa7 {[%clk 0:00:15.4]}
45... Nf5 {[%clk 0:00:33.6]} 46. a5 {[%clk 0:00:15.7]} 46... h4 {[%clk
0:00:33.9]} 47. a6 {[%clk 0:00:16.2]} 47... h3 {[%clk 0:00:34.4]} 48. Ra8 {[%clk
0:00:16.4]} 48... h2 {[%clk 0:00:33.4]} 0-1

[Event "Late-Titled-Tuesday-Blitz-February-13-2024"]
[Site "Chess.com"]
[Date "2024.02.13"]
[Round "7"]
[White "ChadBiryani"]
[Black "amiqu"]
[Result "1-0"]
[WhiteElo "2455"]
[BlackElo "2156"]
[TimeControl "180+1"]
[EndTime "15:17:58 PST"]
[Termination "ChadBiryani won on time"]

1. b4 {[%clk 0:03:00.2]} 1... e5 {[%clk 0:02:56.1]} 2. Bb2 {[%clk 0:03:00.1]}
2... d6 {[%clk 0:02:52.8]} 3. e3 {[%clk 0:02:59.4]} 3... g6 {[%clk 0:02:51.1]}
4. Nf3 {[%clk 0:02:56.2]} 4... Bg7 {[%clk 0:02:51.2]} 5. Be2 {[%clk 0:02:55.6]}
5... Ne7 {[%clk 0:02:51.5]} 6. O-O {[%clk 0:02:56]} 6... O-O {[%clk 0:02:51.2]}
7. d3 {[%clk 0:02:56.5]} 7... h6 {[%clk 0:02:40.1]} 8. Nfd2 {[%clk 0:02:38.9]}
8... Be6 {[%clk 0:02:36.9]} 9. c4 {[%clk 0:02:38.6]} 9... a5 {[%clk 0:02:31.3]}
10. a3 {[%clk 0:02:38.1]} 10... Nd7 {[%clk 0:02:30]} 11. Nc3 {[%clk 0:02:38]}
11... f5 {[%clk 0:02:23.7]} 12. Bf3 {[%clk 0:02:32]} 12... Ra7 {[%clk
0:02:02.8]} 13. g3 {[%clk 0:02:30.4]} 13... axb4 {[%clk 0:01:58.5]} 14. axb4
{[%clk 0:02:30.4]} 14... Rxa1 {[%clk 0:01:58]} 15. Qxa1 {[%clk 0:02:30.3]} 15...
b6 {[%clk 0:01:55.1]} 16. Bg2 {[%clk 0:02:22.3]} 16... Kh7 {[%clk 0:01:54.7]}
17. Qa7 {[%clk 0:02:18.5]} 17... Nc8 {[%clk 0:01:50.1]} 18. Qb7 {[%clk
0:02:11.5]} 18... f4 {[%clk 0:01:47.7]} 19. Nb5 {[%clk 0:02:04.5]} 19... c5
{[%clk 0:01:29.1]} 20. exf4 {[%clk 0:01:49.6]} 20... cxb4 {[%clk 0:01:21.8]} 21.
Ne4 {[%clk 0:01:30.5]} 21... Nc5 {[%clk 0:00:36.8]} 22. Nxc5 {[%clk 0:01:24.8]}
22... dxc5 {[%clk 0:00:30.1]} 23. Bxe5 {[%clk 0:01:04.1]} 23... Rf7 {[%clk
0:00:29.1]} 24. Qc6 {[%clk 0:00:47]} 24... Bf5 {[%clk 0:00:19.3]} 25. Bd5 {[%clk
0:00:42.8]} 25... Re7 {[%clk 0:00:14.6]} 26. Re1 {[%clk 0:00:26.7]} 26... Bh3
{[%clk 0:00:12.6]} 27. Be4 {[%clk 0:00:23.2]} 27... Bf5 {[%clk 0:00:08.9]} 28.
Bd5 {[%clk 0:00:23]} 28... Bh3 {[%clk 0:00:08.2]} 29. f3 {[%clk 0:00:20.1]}
29... Bf5 {[%clk 0:00:07.7]} 30. Re3 {[%clk 0:00:15.7]} 30... h5 {[%clk
0:00:06.8]} 31. Kf2 {[%clk 0:00:15.3]} 31... Kh6 {[%clk 0:00:04.9]} 32. d4
{[%clk 0:00:10.2]} 32... cxd4 {[%clk 0:00:02.9]} 33. Nxd4 {[%clk 0:00:10.6]}
33... Na7 {[%clk 0:00:02.1]} 34. Qa4 {[%clk 0:00:08.7]} 1-0

[Event "Late-Titled-Tuesday-Blitz-February-13-2024"]
[Site "Chess.com"]
[Date "2024.02.13"]
[Round "7"]
[White "tarno17"]
[Black "GoValya"]
[Result "0-1"]
[WhiteElo "2116"]
[BlackElo "2241"]
[TimeControl "180+1"]
[EndTime "15:18:00 PST"]
[Termination "GoValya won on time"]

1. e4 {[%clk 0:03:00.9]} 1... e6 {[%clk 0:02:58.2]} 2. d4 {[%clk 0:03:01]} 2...
d5 {[%clk 0:02:58.9]} 3. Nd2 {[%clk 0:02:59.4]} 3... c5 {[%clk 0:02:59.1]} 4.
exd5 {[%clk 0:02:58.3]} 4... exd5 {[%clk 0:02:59.3]} 5. Bb5+ {[%clk 0:02:55]}
5... Nc6 {[%clk 0:02:59.1]} 6. Ngf3 {[%clk 0:02:52.6]} 6... Nf6 {[%clk
0:02:59.3]} 7. O-O {[%clk 0:02:51.4]} 7... Be7 {[%clk 0:02:59.7]} 8. c3 {[%clk
0:02:37.5]} 8... O-O {[%clk 0:02:58.9]} 9. Ba4 {[%clk 0:02:27.9]} 9... Bg4
{[%clk 0:02:52]} 10. dxc5 {[%clk 0:02:16.4]} 10... Bxc5 {[%clk 0:02:49.3]} 11.
h3 {[%clk 0:02:16.1]} 11... Bh5 {[%clk 0:02:47.9]} 12. Bc2 {[%clk 0:02:16.3]}
12... Bb6 {[%clk 0:02:28.9]} 13. a4 {[%clk 0:02:07.5]} 13... Re8 {[%clk
0:02:20.1]} 14. b4 {[%clk 0:01:37.2]} 14... Ne4 {[%clk 0:02:00.3]} 15. Nxe4
{[%clk 0:01:20.5]} 15... dxe4 {[%clk 0:02:01.2]} 16. Qxd8 {[%clk 0:01:20.7]}
16... Raxd8 {[%clk 0:01:59.9]} 17. Nh4 {[%clk 0:00:47.1]} 17... e3 {[%clk
0:01:40.7]} 18. fxe3 {[%clk 0:00:44.8]} 18... Bxe3+ {[%clk 0:01:40.8]} 19. Kh1
{[%clk 0:00:30.3]} 19... Be2 {[%clk 0:01:16.9]} 20. Bxe3 {[%clk 0:00:11.2]}
20... Bxf1 {[%clk 0:01:14.7]} 21. Bg5 {[%clk 0:00:02.4]} 21... f6 {[%clk
0:01:12.2]} 22. Rxf1 {[%clk 0:00:02.6]} 22... fxg5 {[%clk 0:01:12]} 23. Nf3
{[%clk 0:00:03.2]} 23... h6 {[%clk 0:01:09.9]} 24. h4 {[%clk 0:00:03.6]} 24...
g4 {[%clk 0:01:06.5]} 25. Nh2 {[%clk 0:00:04.3]} 25... Re2 {[%clk 0:00:55]} 26.
Bf5 {[%clk 0:00:03.4]} 26... h5 {[%clk 0:00:49.8]} 27. Bg6 {[%clk 0:00:03.3]}
27... Re5 {[%clk 0:00:44.4]} 28. Bf7+ {[%clk 0:00:02.1]} 28... Kh7 {[%clk
0:00:40.6]} 29. b5 {[%clk 0:00:03]} 29... Ne7 {[%clk 0:00:38.4]} 30. Bc4 {[%clk
0:00:03.4]} 30... Rc5 {[%clk 0:00:33.8]} 31. Ba2 {[%clk 0:00:01.8]} 31... Rxc3
{[%clk 0:00:30.8]} 32. Bb1+ {[%clk 0:00:02.5]} 32... Kh6 {[%clk 0:00:27.2]} 33.
Re1 {[%clk 0:00:03.4]} 33... Ng8 {[%clk 0:00:17.1]} 34. Re6+ {[%clk 0:00:03.1]}
34... Nf6 {[%clk 0:00:17.7]} 35. Nf1 {[%clk 0:00:02.6]} 35... Rc1 {[%clk
0:00:17.7]} 36. Bf5 {[%clk 0:00:01.5]} 36... Rxf1+ {[%clk 0:00:17.5]} 37. Kh2
{[%clk 0:00:02.2]} 37... Rxf5 {[%clk 0:00:17.7]} 38. Re7 {[%clk 0:00:02.4]}
38... Rd3 {[%clk 0:00:17.2]} 39. Rxb7 {[%clk 0:00:03]} 39... g3+ {[%clk
0:00:17.5]} 40. Kh3 {[%clk 0:00:02.2]} 40... Rf1 {[%clk 0:00:17.6]} 0-1

[Event "Late-Titled-Tuesday-Blitz-February-13-2024"]
[Site "Chess.com"]
[Date "2024.02.13"]
[Round "7"]
[White "ACollins05"]
[Black "riconaipe"]
[Result "0-1"]
[WhiteElo "2451"]
[BlackElo "2595"]
[TimeControl "180+1"]
[EndTime "15:18:02 PST"]
[Termination "riconaipe won by resignation"]

1. d4 {[%clk 0:03:00.9]} 1... g6 {[%clk 0:03:00.9]} 2. c4 {[%clk 0:02:58.4]}
2... Bg7 {[%clk 0:03:00.5]} 3. Nc3 {[%clk 0:02:58.4]} 3... d6 {[%clk 0:02:58.3]}
4. e4 {[%clk 0:02:55.8]} 4... Nd7 {[%clk 0:02:52.4]} 5. Nf3 {[%clk 0:02:53]}
5... e5 {[%clk 0:02:52.5]} 6. Be2 {[%clk 0:02:51.4]} 6... Ne7 {[%clk 0:02:50.8]}
7. O-O {[%clk 0:02:42.3]} 7... O-O {[%clk 0:02:50.1]} 8. Bg5 {[%clk 0:02:34.7]}
8... h6 {[%clk 0:02:49.5]} 9. Bh4 {[%clk 0:02:28.6]} 9... g5 {[%clk 0:02:49.6]}
10. Bg3 {[%clk 0:02:28]} 10... Ng6 {[%clk 0:02:50.2]} 11. dxe5 {[%clk
0:02:21.5]} 11... Ndxe5 {[%clk 0:02:50.2]} 12. Nxe5 {[%clk 0:02:21.3]} 12...
dxe5 {[%clk 0:02:49.4]} 13. Qxd8 {[%clk 0:02:15.4]} 13... Rxd8 {[%clk 0:02:49]}
14. Nd5 {[%clk 0:02:16.1]} 14... c6 {[%clk 0:02:46]} 15. Ne3 {[%clk 0:02:16.2]}
15... Nf4 {[%clk 0:02:43.3]} 16. Bg4 {[%clk 0:02:08.5]} 16... Bxg4 {[%clk
0:02:28.6]} 17. Nxg4 {[%clk 0:02:09.4]} 17... h5 {[%clk 0:02:27.6]} 18. Ne3
{[%clk 0:02:04.7]} 18... Ne2+ {[%clk 0:02:27.1]} 19. Kh1 {[%clk 0:02:02]} 19...
h4 {[%clk 0:02:27.7]} 20. Rae1 {[%clk 0:01:57.5]} 20... Rd2 {[%clk 0:02:15.9]}
21. Nf5 {[%clk 0:01:53.4]} 21... hxg3 {[%clk 0:02:13.4]} 22. fxg3 {[%clk
0:01:54.3]} 22... f6 {[%clk 0:01:51.9]} 23. h4 {[%clk 0:01:46.2]} 23... gxh4
{[%clk 0:01:41.2]} 24. gxh4 {[%clk 0:01:47.1]} 24... Nd4 {[%clk 0:01:38.4]} 25.
Nd6 {[%clk 0:01:32.1]} 25... Nc2 {[%clk 0:01:26.7]} 26. Rc1 {[%clk 0:01:27.9]}
26... Rxd6 {[%clk 0:01:18.5]} 27. Rxc2 {[%clk 0:01:26.8]} 27... Rad8 {[%clk
0:01:19.1]} 28. Kh2 {[%clk 0:01:22.8]} 28... Rd2 {[%clk 0:01:18.8]} 29. Rf2
{[%clk 0:01:22.1]} 29... Rxf2 {[%clk 0:01:17.4]} 30. Rxf2 {[%clk 0:01:20.6]}
30... Rd4 {[%clk 0:01:17.8]} 31. Re2 {[%clk 0:01:20.8]} 31... Rxc4 {[%clk
0:01:17.8]} 32. Kh3 {[%clk 0:01:21.1]} 32... Rd4 {[%clk 0:01:12.2]} 33. Kg4
{[%clk 0:01:20.9]} 33... Kf7 {[%clk 0:01:08.8]} 34. Kf5 {[%clk 0:01:21.1]} 34...
c5 {[%clk 0:01:03.4]} 35. g4 {[%clk 0:01:21.1]} 35... b5 {[%clk 0:01:03.8]} 36.
g5 {[%clk 0:01:20.6]} 36... fxg5 {[%clk 0:01:03.2]} 37. hxg5 {[%clk 0:01:21.5]}
37... c4 {[%clk 0:01:01.2]} 38. g6+ {[%clk 0:01:18.7]} 38... Ke7 {[%clk
0:00:50.2]} 39. Rh2 {[%clk 0:01:17.6]} 39... Rd6 {[%clk 0:00:50.3]} 40. Rh7
{[%clk 0:01:14]} 40... Kf8 {[%clk 0:00:44.7]} 41. Rh1 {[%clk 0:01:13]} 41... a5
{[%clk 0:00:40.8]} 42. Rh2 {[%clk 0:01:07]} 42... Rf6+ {[%clk 0:00:35.2]} 43.
Kg5 {[%clk 0:01:05.1]} 43... b4 {[%clk 0:00:33.7]} 44. Rd2 {[%clk 0:01:03.3]}
44... Ke7 {[%clk 0:00:26.8]} 45. Rd5 {[%clk 0:01:03]} 45... Rc6 {[%clk
0:00:18.7]} 46. Rxa5 {[%clk 0:00:58.6]} 46... Rc7 {[%clk 0:00:19.2]} 47. Rd5
{[%clk 0:00:49.5]} 47... c3 {[%clk 0:00:19.3]} 48. bxc3 {[%clk 0:00:49]} 48...
bxc3 {[%clk 0:00:20.2]} 49. Rd1 {[%clk 0:00:49.3]} 49... c2 {[%clk 0:00:20.6]}
50. Rc1 {[%clk 0:00:49.5]} 50... Ke6 {[%clk 0:00:20.7]} 51. a4 {[%clk
0:00:48.3]} 51... Bf8 {[%clk 0:00:21.2]} 52. a5 {[%clk 0:00:43.9]} 52... Ba3
{[%clk 0:00:21.3]} 53. Rxc2 {[%clk 0:00:32.2]} 53... Rxc2 {[%clk 0:00:22.2]} 54.
g7 {[%clk 0:00:32.7]} 54... Rg2+ {[%clk 0:00:20.8]} 55. Kh6 {[%clk 0:00:32.7]}
55... Kf7 {[%clk 0:00:21.2]} 56. a6 {[%clk 0:00:32.6]} 56... Rg6+ {[%clk
0:00:21]} 57. Kh5 {[%clk 0:00:32.8]} 57... Rxa6 {[%clk 0:00:20]} 0-1

[Event "Late-Titled-Tuesday-Blitz-February-13-2024"]
[Site "Chess.com"]
[Date "2024.02.13"]
[Round "7"]
[White "Kirill_Klukin"]
[Black "Hikaru"]
[Result "0-1"]
[WhiteElo "2827"]
[BlackElo "3314"]
[TimeControl "180+1"]
[EndTime "15:18:03 PST"]
[Termination "Hikaru won by resignation"]

1. d4 {[%clk 0:03:00.9]} 1... g6 {[%clk 0:03:00.9]} 2. Nf3 {[%clk 0:03:00.9]}
2... Bg7 {[%clk 0:03:00.9]} 3. c4 {[%clk 0:03:00.9]} 3... d6 {[%clk 0:03:01.2]}
4. Nc3 {[%clk 0:03:01.1]} 4... Nc6 {[%clk 0:03:01.5]} 5. Bf4 {[%clk 0:02:56.9]}
5... Nf6 {[%clk 0:02:55.8]} 6. e3 {[%clk 0:02:55.2]} 6... Nh5 {[%clk 0:02:54.4]}
7. Bg5 {[%clk 0:02:54.1]} 7... h6 {[%clk 0:02:54.8]} 8. Bh4 {[%clk 0:02:54.5]}
8... g5 {[%clk 0:02:55.3]} 9. Nd2 {[%clk 0:02:52.7]} 9... Nf4 {[%clk 0:02:50.8]}
10. Bg3 {[%clk 0:02:47.5]} 10... Ng6 {[%clk 0:02:50.9]} 11. Bd3 {[%clk
0:02:47.5]} 11... e5 {[%clk 0:02:47.5]} 12. dxe5 {[%clk 0:02:15.1]} 12... Ncxe5
{[%clk 0:02:44.4]} 13. Be2 {[%clk 0:02:15.4]} 13... O-O {[%clk 0:02:43]} 14. h3
{[%clk 0:02:12.7]} 14... f5 {[%clk 0:02:42.9]} 15. O-O {[%clk 0:02:09.3]} 15...
f4 {[%clk 0:02:43.2]} 16. exf4 {[%clk 0:02:09.4]} 16... Nxf4 {[%clk 0:02:27.8]}
17. Bxf4 {[%clk 0:02:07.4]} 17... Rxf4 {[%clk 0:02:26.6]} 18. Nd5 {[%clk
0:02:07.9]} 18... Rf8 {[%clk 0:02:26.4]} 19. Ne3 {[%clk 0:02:02.6]} 19... c6
{[%clk 0:02:25.4]} 20. Qc2 {[%clk 0:02:02.2]} 20... Be6 {[%clk 0:02:16.3]} 21.
Rad1 {[%clk 0:02:02]} 21... Bf7 {[%clk 0:02:16.9]} 22. b3 {[%clk 0:01:31.7]}
22... Bg6 {[%clk 0:02:15.4]} 23. Qc1 {[%clk 0:01:29.8]} 23... Rf4 {[%clk
0:02:08.3]} 24. Nf3 {[%clk 0:01:26.7]} 24... Nxf3+ {[%clk 0:02:01.3]} 25. Bxf3
{[%clk 0:01:27]} 25... Rxf3 {[%clk 0:02:01.8]} 26. gxf3 {[%clk 0:01:27.4]} 26...
Qf6 {[%clk 0:02:02.3]} 27. Ng4 {[%clk 0:01:24.8]} 27... Qf8 {[%clk 0:01:54.7]}
28. Qe3 {[%clk 0:01:21.3]} 28... Re8 {[%clk 0:01:54.2]} 29. Qd2 {[%clk
0:01:15.8]} 29... Qxf3 {[%clk 0:01:51.2]} 30. Qxd6 {[%clk 0:01:06.9]} 30... Be4
{[%clk 0:01:46.3]} 31. Qh2 {[%clk 0:00:51.2]} 31... h5 {[%clk 0:01:45]} 32. Ne3
{[%clk 0:00:22.3]} 32... Be5 {[%clk 0:01:44.8]} 33. Qg2 {[%clk 0:00:22.1]} 33...
Qf4 {[%clk 0:01:45.2]} 34. Qg3 {[%clk 0:00:21.4]} 34... Qf6 {[%clk 0:01:45.5]}
35. f4 {[%clk 0:00:19.2]} 35... Bxf4 {[%clk 0:01:45.9]} 36. Rxf4 {[%clk
0:00:19.5]} 36... Qxf4 {[%clk 0:01:46.1]} 37. Qxf4 {[%clk 0:00:19.1]} 37... gxf4
{[%clk 0:01:47]} 38. Ng2 {[%clk 0:00:19.8]} 38... Bf5 {[%clk 0:01:19.1]} 39.
Nxf4 {[%clk 0:00:18.9]} 39... h4 {[%clk 0:01:19.8]} 40. Kf2 {[%clk 0:00:18.3]}
40... Kf7 {[%clk 0:01:19.2]} 41. Rd6 {[%clk 0:00:08.8]} 41... Rh8 {[%clk
0:00:55.9]} 42. Kf3 {[%clk 0:00:02.5]} 42... Ke7 {[%clk 0:00:55.4]} 43. Rd2
{[%clk 0:00:03.1]} 43... Kf6 {[%clk 0:00:54.5]} 44. Rd6+ {[%clk 0:00:03.7]}
44... Ke5 {[%clk 0:00:54]} 45. c5 {[%clk 0:00:04.1]} 45... Rg8 {[%clk
0:00:53.4]} 46. Ne2 {[%clk 0:00:01.7]} 46... Bxh3 {[%clk 0:00:50.4]} 47. Rh6
{[%clk 0:00:02.4]} 47... Bg4+ {[%clk 0:00:49.8]} 48. Kf2 {[%clk 0:00:02.9]}
48... Rf8+ {[%clk 0:00:36.4]} 49. Ke3 {[%clk 0:00:03]} 49... Rf3+ {[%clk
0:00:35.7]} 50. Kd2 {[%clk 0:00:02.9]} 50... Rf2 {[%clk 0:00:36.4]} 51. Rxh4
{[%clk 0:00:03.2]} 51... Rxe2+ {[%clk 0:00:36.7]} 52. Kd3 {[%clk 0:00:03.7]}
52... Rg2 {[%clk 0:00:37.5]} 53. Rh7 {[%clk 0:00:03.7]} 53... Bf5+ {[%clk
0:00:37.9]} 0-1

[Event "Late-Titled-Tuesday-Blitz-February-13-2024"]
[Site "Chess.com"]
[Date "2024.02.13"]
[Round "7"]
[White "Atousa"]
[Black "AndresDelgado77"]
[Result "1-0"]
[WhiteElo "2538"]
[BlackElo "2342"]
[TimeControl "180+1"]
[EndTime "15:18:05 PST"]
[Termination "Atousa won on time"]

1. Nf3 {[%clk 0:02:56.9]} 1... c5 {[%clk 0:02:57.1]} 2. g3 {[%clk 0:02:54.5]}
2... Nc6 {[%clk 0:02:56.3]} 3. Bg2 {[%clk 0:02:54.8]} 3... g6 {[%clk 0:02:56.8]}
4. O-O {[%clk 0:02:54.6]} 4... Bg7 {[%clk 0:02:57.2]} 5. e4 {[%clk 0:02:54.1]}
5... e6 {[%clk 0:02:53.5]} 6. c3 {[%clk 0:02:54.6]} 6... Nge7 {[%clk 0:02:50]}
7. d4 {[%clk 0:02:54.3]} 7... cxd4 {[%clk 0:02:50.4]} 8. cxd4 {[%clk 0:02:55.2]}
8... Qb6 {[%clk 0:02:50.6]} 9. d5 {[%clk 0:02:51.8]} 9... Bxb2 {[%clk
0:02:48.9]} 10. Bxb2 {[%clk 0:02:49.6]} 10... Qxb2 {[%clk 0:02:48.7]} 11. dxc6
{[%clk 0:02:49]} 11... Qxa1 {[%clk 0:02:45.5]} 12. cxb7 {[%clk 0:02:42.2]} 12...
Bxb7 {[%clk 0:02:36.5]} 13. Qb3 {[%clk 0:02:39.6]} 13... Ba6 {[%clk 0:02:35.3]}
14. Re1 {[%clk 0:02:32.9]} 14... Qg7 {[%clk 0:01:59]} 15. Qa3 {[%clk 0:02:21.6]}
15... Bb7 {[%clk 0:01:52.7]} 16. Nc3 {[%clk 0:02:18.8]} 16... Bc6 {[%clk
0:01:46.5]} 17. e5 {[%clk 0:02:10.2]} 17... Nf5 {[%clk 0:01:10.1]} 18. Ne4
{[%clk 0:01:54.4]} 18... Bxe4 {[%clk 0:01:09.6]} 19. Rxe4 {[%clk 0:01:55.3]}
19... Qf8 {[%clk 0:01:09.9]} 20. Qd3 {[%clk 0:01:14.2]} 20... Qe7 {[%clk
0:01:08]} 21. g4 {[%clk 0:01:13.8]} 21... Nh6 {[%clk 0:00:59.2]} 22. Qd2 {[%clk
0:01:05.3]} 22... g5 {[%clk 0:00:52.6]} 23. Nxg5 {[%clk 0:00:45.7]} 23... Rb8
{[%clk 0:00:44.6]} 24. h3 {[%clk 0:00:34.5]} 24... O-O {[%clk 0:00:26.7]} 25.
Rd4 {[%clk 0:00:32.3]} 25... Rb1+ {[%clk 0:00:16.6]} 26. Kh2 {[%clk 0:00:31.6]}
26... d5 {[%clk 0:00:15.6]} 27. exd6 {[%clk 0:00:25.5]} 27... Qf6 {[%clk
0:00:15.3]} 28. Nxh7 {[%clk 0:00:18.9]} 28... Kxh7 {[%clk 0:00:12.9]} 29. Be4+
{[%clk 0:00:18.7]} 29... Kh8 {[%clk 0:00:10.8]} 30. Bxb1 {[%clk 0:00:19.3]}
30... Rd8 {[%clk 0:00:08.5]} 31. g5 {[%clk 0:00:18.5]} 31... Qe5+ {[%clk
0:00:08]} 32. f4 {[%clk 0:00:18.4]} 32... Qb5 {[%clk 0:00:06.4]} 33. Bd3 {[%clk
0:00:15.3]} 33... Qc5 {[%clk 0:00:03.3]} 34. Be4 {[%clk 0:00:13.6]} 34... Nf5
{[%clk 0:00:02.5]} 35. Bxf5 {[%clk 0:00:13.9]} 35... exf5 {[%clk 0:00:01.4]} 36.
d7 {[%clk 0:00:14.1]} 36... Qc7 {[%clk 0:00:01.4]} 37. Rd5 {[%clk 0:00:13.4]}
37... Kg8 {[%clk 0:00:01.6]} 38. h4 {[%clk 0:00:13.2]} 38... Kf8 {[%clk
0:00:01.5]} 39. h5 {[%clk 0:00:13.7]} 39... Kg8 {[%clk 0:00:01.6]} 40. h6 {[%clk
0:00:14.1]} 40... Kh7 {[%clk 0:00:01.4]} 41. Qd4 {[%clk 0:00:14]} 1-0

[Event "Late-Titled-Tuesday-Blitz-February-13-2024"]
[Site "Chess.com"]
[Date "2024.02.13"]
[Round "7"]
[White "Bilan_Danila"]
[Black "elgrona"]
[Result "1-0"]
[WhiteElo "2537"]
[BlackElo "2340"]
[TimeControl "180+1"]
[EndTime "15:18:05 PST"]
[Termination "Bilan_Danila won by resignation"]

1. d4 {[%clk 0:02:58.6]} 1... d5 {[%clk 0:02:56.7]} 2. Nf3 {[%clk 0:02:59]} 2...
Nf6 {[%clk 0:02:55.8]} 3. c4 {[%clk 0:02:59.4]} 3... c6 {[%clk 0:02:55.4]} 4.
Nc3 {[%clk 0:02:58.7]} 4... dxc4 {[%clk 0:02:50.5]} 5. a4 {[%clk 0:02:57.3]}
5... Bf5 {[%clk 0:02:50.5]} 6. e3 {[%clk 0:02:56.6]} 6... e6 {[%clk 0:02:51.1]}
7. Bxc4 {[%clk 0:02:57.3]} 7... Bb4 {[%clk 0:02:51.4]} 8. O-O {[%clk 0:02:58]}
8... Nbd7 {[%clk 0:02:51.7]} 9. Qe2 {[%clk 0:02:49.1]} 9... Bg6 {[%clk
0:02:41.2]} 10. Bd2 {[%clk 0:02:31.6]} 10... O-O {[%clk 0:02:35.8]} 11. h3
{[%clk 0:02:25.8]} 11... Qe7 {[%clk 0:02:33.9]} 12. Nh4 {[%clk 0:02:17.6]} 12...
e5 {[%clk 0:02:30]} 13. Nxg6 {[%clk 0:02:15.9]} 13... hxg6 {[%clk 0:02:30.7]}
14. dxe5 {[%clk 0:02:10.3]} 14... Nxe5 {[%clk 0:02:21.6]} 15. Bb3 {[%clk
0:02:10.5]} 15... Rad8 {[%clk 0:02:18.6]} 16. Rfd1 {[%clk 0:02:09.7]} 16... Nfd7
{[%clk 0:02:06.8]} 17. Ne4 {[%clk 0:01:57.9]} 17... Bxd2 {[%clk 0:01:42.6]} 18.
Rxd2 {[%clk 0:01:56.8]} 18... Nc5 {[%clk 0:01:32.9]} 19. Nxc5 {[%clk 0:01:50.1]}
19... Qxc5 {[%clk 0:01:33.8]} 20. Rad1 {[%clk 0:01:50.4]} 20... Rxd2 {[%clk
0:01:30.4]} 21. Qxd2 {[%clk 0:01:50.5]} 21... g5 {[%clk 0:01:26.5]} 22. Qd6
{[%clk 0:01:38.1]} 22... Qb6 {[%clk 0:00:57.6]} 23. Qxe5 {[%clk 0:01:19.6]}
23... Qxb3 {[%clk 0:00:57.2]} 24. Rd7 {[%clk 0:01:09.9]} 24... Qxa4 {[%clk
0:00:49.2]} 25. Rxb7 {[%clk 0:01:04.4]} 25... g4 {[%clk 0:00:44.7]} 26. hxg4
{[%clk 0:00:53.8]} 26... Qxg4 {[%clk 0:00:43.1]} 27. Rxa7 {[%clk 0:00:53.4]}
27... Rd8 {[%clk 0:00:27]} 28. Ra1 {[%clk 0:00:47.5]} 28... Rd2 {[%clk
0:00:23.8]} 29. Qe8+ {[%clk 0:00:24.7]} 29... Kh7 {[%clk 0:00:21]} 30. Qxc6
{[%clk 0:00:24.2]} 30... Rxb2 {[%clk 0:00:16]} 31. Qd6 {[%clk 0:00:14.8]} 31...
Qe2 {[%clk 0:00:10.9]} 32. Qh2+ {[%clk 0:00:12.5]} 32... Kg6 {[%clk 0:00:11.1]}
33. Qg3+ {[%clk 0:00:12]} 33... Kf6 {[%clk 0:00:11.4]} 34. Rc1 {[%clk
0:00:07.3]} 34... Rc2 {[%clk 0:00:10.7]} 35. Qf4+ {[%clk 0:00:04.4]} 35... Ke7
{[%clk 0:00:06.8]} 36. Qe4+ {[%clk 0:00:04.8]} 1-0